fUST/lending_fUST_20250302
["ID","MTS","AMOUNT","RATE_DAILY","PERIOD"]
[355102763,1740893448613,-338.29515779,0.00025288,2]
[355102764,1740893448622,-500.0,0.00025288,2]
[355102765,1740893448632,-500.0,0.00025288,2]
[355102766,1740893448644,-1851.93,0.00025553,2]
[355102767,1740893448654,-1012.52,0.00025553,2]
[355102768,1740893448664,-500.0,0.00025553,2]
[355102769,1740893448675,-500.0,0.00025553,2]
[355102770,1740893448684,-500.0,0.00025553,2]
[355102771,1740893448695,-1127.62,0.00025553,2]
[355102772,1740893448705,-2363.03,0.00025553,2]
[355102773,1740893448715,-2725.78,0.00025553,2]
[355102774,1740893448725,-500.0,0.00025553,2]
[355102775,1740893448736,-1477.59,0.00025553,2]
[355102776,1740893448746,-864.7,0.00025553,2]
[355102777,1740893448756,-500.0,0.00025554,2]
[355102778,1740893448768,-500.0,0.00025554,2]
[355102779,1740893448789,-500.0,0.00025554,2]
[355102780,1740893448799,-500.0,0.00025554,2]
[355102781,1740893448809,-500.0,0.00025554,2]
[355102782,1740893448818,-500.0,0.00025554,2]
[355102783,1740893448828,-500.0,0.00025554,2]
[355102784,1740893448839,-931.01,0.00025554,2]
[355102785,1740893448848,-590.83,0.00025554,2]
[355102786,1740893448859,-1480.77,0.00025554,2]
[355102787,1740893448869,-3646.62,0.00025554,2]
[355102788,1740893448878,-1675.46,0.00025554,2]
[355102789,1740893448888,-500.0,0.00025554,2]
[355102790,1740893448898,-581.11,0.00025554,2]
[355102791,1740893448909,-500.0,0.00025554,2]
[355102792,1740893448919,-500.0,0.00025554,2]
[355102793,1740893448929,-500.0,0.00025554,2]
[355102794,1740893448939,-1790.99,0.00025554,2]
[355102795,1740893448949,-878.65,0.00025554,2]
[355102796,1740893448959,-500.0,0.00025554,2]
[355102797,1740893448969,-2456.63,0.00025554,2]
[355102798,1740893448979,-552.88,0.00025554,2]
[355102799,1740893448990,-665.32,0.00025554,2]
[355102800,1740893449000,-609.4,0.00025554,2]
[355102801,1740893449010,-1196.62,0.00025554,2]
[355102802,1740893449020,-29395.73,0.00025554,2]
[355102803,1740893449030,-830.9,0.00025554,2]
[355102804,1740893449040,-194.24,0.000256,7]
[355102805,1740893449050,-8609.89889912,0.0002569,2]
[355102806,1740893449060,-1851.93,0.00025827,2]
[355102807,1740893449070,-1012.52,0.00025827,2]
[355102808,1740893449081,-500.0,0.00025827,2]
[355102809,1740893449091,-500.0,0.00025827,2]
[355102810,1740893449101,-500.0,0.00025827,2]
[355102811,1740893449111,-1127.62,0.00025827,2]
[355102812,1740893449121,-2363.03,0.00025827,2]
[355102813,1740893449131,-2725.78,0.00025827,2]
[355102814,1740893449141,-500.0,0.00025827,2]
[355102815,1740893449155,-1477.59,0.00025827,2]
[355102816,1740893449166,-552.44,0.00025828,2]
[355102817,1740893449176,-610.66,0.00025828,2]
[355102818,1740893449186,-500.0,0.00025828,2]
[355102819,1740893449197,-448.96,0.00025828,2]
[355102820,1740893449207,-500.0,0.00025828,2]
[355102821,1740893449217,-500.0,0.00025828,2]
[355102822,1740893449227,-500.0,0.00025828,2]
[355102823,1740893449238,-931.01,0.00025828,2]
[355102824,1740893449248,-590.83,0.00025828,2]
[355102825,1740893449258,-1480.77,0.00025828,2]
[355102826,1740893449269,-3646.62,0.00025828,2]
[355102827,1740893449280,-1675.46,0.00025828,2]
[355102828,1740893449290,-500.0,0.00025828,2]
[355102829,1740893449300,-581.11,0.00025828,2]
[355102830,1740893449311,-500.0,0.00025828,2]
[355102831,1740893449322,-500.0,0.00025828,2]
[355102832,1740893449332,-500.0,0.00025828,2]
[355102833,1740893449342,-1790.99,0.00025828,2]
[355102834,1740893449353,-878.65,0.00025828,2]
[355102835,1740893449363,-579.31,0.00025828,2]
[355102836,1740893449373,-2456.63,0.00025828,2]
[355102837,1740893449384,-552.88,0.00025828,2]
[355102838,1740893449394,-665.32,0.00025828,2]
[355102839,1740893449404,-609.4,0.00025828,2]
[355102840,1740893449414,-1196.62,0.00025828,2]
[355102841,1740893449424,-29395.73,0.00025828,2]
[355102842,1740893449434,-830.9,0.00025828,2]
[355102843,1740893449444,-3000.0,0.00025876,7]
[355102844,1740893449455,-151.0,0.000259,13]
[355102845,1740893449468,-204.04207536,0.00025948,4]
[355102846,1740893449483,-500.0,0.00026,2]
[355102847,1740893449494,-19629.85965445,0.00026,3]
[355102848,1740893449504,-19629.85965445,0.00026,3]
[355102849,1740893449515,-160.0,0.00026,3]
[355102850,1740893449526,-160.0,0.00026,3]
[355102851,1740893449728,-1851.93,0.00026101,2]
[355102852,1740893449739,-1012.52,0.00026101,2]
[355102853,1740893449749,-467.32486307,0.00026101,2]
[355102854,1740893449759,-500.0,0.00026101,2]
[355102855,1740893449769,-500.0,0.00026101,2]
[355102856,1740893449779,-1127.62,0.00026101,2]
[355102857,1740893449789,-2363.03,0.00026101,2]
[355102858,1740893449800,-2725.78,0.00026101,2]
[355102859,1740893449810,-500.0,0.00026101,2]
[355102860,1740893449823,-1477.59,0.00026101,2]
[355102861,1740893449833,-470.39,0.00026102,2]
[355102862,1740893449843,-500.0,0.00026102,2]
[355102863,1740893449853,-500.0,0.00026102,2]
[355102864,1740893449863,-385.62,0.00026102,2]
[355102865,1740893449873,-931.01,0.00026102,2]
[355102866,1740893449883,-590.83,0.00026102,2]
[355102867,1740893449894,-1480.77,0.00026102,2]
[355102868,1740893449904,-3646.62,0.00026102,2]
[355102869,1740893449914,-1675.46,0.00026102,2]
[355102870,1740893449924,-500.0,0.00026102,2]
[355102871,1740893449934,-581.11,0.00026102,2]
[355102872,1740893449944,-500.0,0.00026102,2]
[355102873,1740893449954,-500.0,0.00026102,2]
[355102874,1740893449964,-500.0,0.00026102,2]
[355102875,1740893449974,-1790.99,0.00026102,2]
[355102876,1740893449985,-878.65,0.00026102,2]
[355102877,1740893449995,-2456.63,0.00026102,2]
[355102878,1740893450004,-552.88,0.00026102,2]
[355102879,1740893450014,-665.32,0.00026102,2]
[355102880,1740893450024,-609.4,0.00026102,2]
[355102881,1740893450034,-1196.62,0.00026102,2]
[355102882,1740893450044,-29395.73,0.00026102,2]
[355102883,1740893450054,-830.9,0.00026102,2]
[355102884,1740893450064,-377.63158147,0.00026242,2]
[355102885,1740893450074,-587.0,0.00026277,2]
[355102886,1740893450085,-1851.93,0.00026375,2]
[355102887,1740893450095,-1012.52,0.00026375,2]
[355102888,1740893450105,-500.0,0.00026375,2]
[355102889,1740893450115,-500.0,0.00026375,2]
[355102890,1740893450127,-1127.62,0.00026375,2]
[355102891,1740893450136,-2363.03,0.00026375,2]
[355102892,1740893450146,-2725.78,0.00026375,2]
[355102893,1740893450156,-500.0,0.00026375,2]
[355102894,1740893450167,-1477.59,0.00026375,2]
[355102895,1740893450177,-500.0,0.00026376,2]
[355102896,1740893450192,-393.42,0.00026376,2]
[355102897,1740893450203,-931.01,0.00026376,2]
[355102898,1740893450214,-590.83,0.00026376,2]
[355102899,1740893450226,-1480.77,0.00026376,2]
[355102900,1740893450236,-3646.62,0.00026376,2]
[355102901,1740893450246,-1675.46,0.00026376,2]
[355102902,1740893450256,-500.0,0.00026376,2]
[355102903,1740893450267,-581.11,0.00026376,2]
[355102904,1740893450278,-500.0,0.00026376,2]
[355102905,1740893450288,-500.0,0.00026376,2]
[355102906,1740893450299,-500.0,0.00026376,2]
[355102907,1740893450310,-1790.99,0.00026376,2]
[355102908,1740893450320,-878.65,0.00026376,2]
[355102909,1740893450331,-2456.63,0.00026376,2]
[355102910,1740893450341,-552.88,0.00026376,2]
[355102911,1740893450351,-665.32,0.00026376,2]
[355102912,1740893450362,-609.4,0.00026376,2]
[355102913,1740893450373,-1196.62,0.00026376,2]
[355102914,1740893450383,-29395.73,0.00026376,2]
[355102915,1740893450394,-2289.0,0.000264,12]
[355102916,1740893450404,-151.0,0.000264,10]
[355102917,1740893450415,-1851.93,0.00026649,2]
[355102918,1740893450424,-1012.52,0.00026649,2]
[355102919,1740893450434,-500.0,0.00026649,2]
[355102920,1740893450444,-500.0,0.00026649,2]
[355102921,1740893450454,-1127.62,0.00026649,2]
[355102922,1740893450465,-2363.03,0.00026649,2]
[355102923,1740893450478,-2725.78,0.00026649,2]
[355102924,1740893450489,-500.0,0.00026649,2]
[355102925,1740893450499,-1477.59,0.00026649,2]
[355102926,1740893450511,-500.0,0.0002665,2]
[355102927,1740893450522,-931.01,0.0002665,2]
[355102928,1740893450532,-590.83,0.0002665,2]
[355102929,1740893450547,-1480.77,0.0002665,2]
[355102930,1740893450557,-3646.62,0.0002665,2]
[355102931,1740893450567,-1675.46,0.0002665,2]
[355102932,1740893450576,-500.0,0.0002665,2]
[355102933,1740893450586,-581.11,0.0002665,2]
[355102934,1740893450596,-500.0,0.0002665,2]
[355102935,1740893450606,-500.0,0.0002665,2]
[355102936,1740893450615,-500.0,0.0002665,2]
[355102937,1740893450625,-1790.99,0.0002665,2]
[355102938,1740893450636,-878.65,0.0002665,2]
[355102939,1740893450646,-2456.63,0.0002665,2]
[355102940,1740893450656,-552.88,0.0002665,2]
[355102941,1740893450666,-665.32,0.0002665,2]
[355102942,1740893450676,-609.4,0.0002665,2]
[355102943,1740893450686,-1196.62,0.0002665,2]
[355102944,1740893450695,-29395.73,0.0002665,2]
[355102945,1740893450705,-3000.0,0.00026698,7]
[355102946,1740893450715,-151.0,0.000269,18]
[355102947,1740893450725,-1851.93,0.00026923,2]
[355102948,1740893450735,-1012.52,0.00026923,2]
[355102949,1740893450744,-500.0,0.00026923,2]
[355102950,1740893450754,-500.0,0.00026923,2]
[355102951,1740893450764,-1127.62,0.00026923,2]
[355102952,1740893450773,-2363.03,0.00026923,2]
[355102953,1740893450783,-2725.78,0.00026923,2]
[355102954,1740893450792,-500.0,0.00026923,2]
[355102955,1740893450802,-1477.59,0.00026923,2]
[355102956,1740893450812,-500.0,0.00026924,2]
[355102957,1740893450822,-931.01,0.00026924,2]
[355102958,1740893450831,-590.83,0.00026924,2]
[355102959,1740893450842,-1480.77,0.00026924,2]
[355102960,1740893450852,-3646.62,0.00026924,2]
[355102961,1740893450861,-1675.46,0.00026924,2]
[355102962,1740893450871,-158.44,0.00026924,2]
[355102963,1740893450881,-581.11,0.00026924,2]
[355102964,1740893450892,-500.0,0.00026924,2]
[355102965,1740893450901,-477.99,0.00026924,2]
[355102966,1740893450911,-500.0,0.00026924,2]
[355102967,1740893450927,-1790.99,0.00026924,2]
[355102968,1740893450940,-878.65,0.00026924,2]
[355102969,1740893450950,-2456.63,0.00026924,2]
[355102970,1740893450959,-552.88,0.00026924,2]
[355102971,1740893450969,-665.32,0.00026924,2]
[355102972,1740893450978,-609.4,0.00026924,2]
[355102973,1740893450988,-1196.62,0.00026924,2]
[355102974,1740893450998,-29395.73,0.00026924,2]
[355102975,1740893451008,-2684.09,0.00027,2]
[355102976,1740893451017,-3632.10935758,0.00027,2]
[355102977,1740893451028,-337.17640358,0.00027,2]
[355102978,1740893451037,-167.0,0.00027,2]
[355102979,1740893451047,-1851.93,0.00027197,2]
[355102980,1740893451058,-1012.52,0.00027197,2]
[355102981,1740893451068,-500.0,0.00027197,2]
[355102982,1740893451078,-422.56964125,0.00027197,2]
[355102983,1740893451087,-1127.62,0.00027197,2]
[355102984,1740893451098,-2363.03,0.00027197,2]
[355102985,1740893451108,-2725.78,0.00027197,2]
[355102986,1740893451118,-500.0,0.00027197,2]
[355102987,1740893451128,-1477.59,0.00027197,2]
[355102988,1740893451138,-500.0,0.00027198,2]
[355102989,1740893451147,-931.01,0.00027198,2]
[355102990,1740893451157,-590.83,0.00027198,2]
[355102991,1740893451167,-1480.77,0.00027198,2]
[355102992,1740893451177,-3646.62,0.00027198,2]
[355102993,1740893451187,-1675.46,0.00027198,2]
[355102994,1740893451197,-581.11,0.00027198,2]
[355102995,1740893451207,-500.0,0.00027198,2]
[355102996,1740893451217,-500.0,0.00027198,2]
[355102997,1740893451227,-1790.99,0.00027198,2]
[355102998,1740893451237,-878.65,0.00027198,2]
[355102999,1740893451247,-2456.63,0.00027198,2]
[355103000,1740893451256,-552.88,0.00027198,2]
[355103001,1740893451267,-665.32,0.00027198,2]
[355103002,1740893451276,-609.4,0.00027198,2]
[355103003,1740893451286,-1196.62,0.00027198,2]
[355103004,1740893451296,-25157.61273939,0.00027198,2]
[355103007,1740893525366,552.94608895,0.00021917,2]
[355103015,1740893578038,-185.05852666,0.00022166,2]
[355103016,1740893578061,-162.66,0.00022266,2]
[355103017,1740893578083,-490.28,0.00022266,2]
[355103018,1740893578103,-500.0,0.00022266,2]
[355103019,1740893578124,-500.0,0.00022266,2]
[355103023,1740893743473,-300.0,0.00022538,2]
[355103024,1740893743497,-500.0,0.00022539,2]
[355103025,1740893743520,-500.0,0.00022539,2]
[355103026,1740893743543,-500.0,0.00022539,2]
[355103027,1740893743571,-500.0,0.00022539,2]
[355103028,1740893743594,-555.38,0.00022539,2]
[355103029,1740893743617,-50.63,0.00022539,2]
[355103030,1740893842630,49040.0,0.0002,3]
[355103031,1740893858455,50000.0,0.00019,3]
[355103032,1740893879663,50000.0,0.00018,3]
[355103033,1740893887049,50000.0,0.00017,3]
[355103034,1740894171376,-150.0,0.0002,2]
[355103035,1740894182371,-150.0,0.0002,2]
[355103036,1740894253819,569.64,0.00022,14]
[355103037,1740894415179,-150.0,0.000189,2]
[355103038,1740894416852,-150.0,0.000189,2]
[355103039,1740894418027,-150.0,0.000189,2]
[355103040,1740894419250,-150.0,0.000189,2]
[355103041,1740894420687,-150.0,0.000189,2]
[355103042,1740894422299,-150.0,0.000189,2]
[355103043,1740894429205,-50.89792195,0.000189,2]
[355103044,1740894429227,-79.60762602,0.0002,2]
[355103045,1740894429249,-1728.57118069,0.00021088,2]
[355103046,1740894513616,-300.0,0.00021087,2]
[355103047,1740894547093,-726.1691774,0.00020875,2]
[355103048,1740894556102,139.47309131,0.0002,2]
[355103049,1740894556124,172.95980212,0.0002,2]
[355103050,1740894560128,-7018.60196509,0.0002,2]
[355103051,1740894560150,-300.0,0.00021087,2]
[355103052,1740894560172,-23171.42881931,0.00021088,2]
[355103053,1740894560194,-250.0,0.00021092,2]
[355103054,1740894560218,-3008.3128351,0.00021132,2]
[355103055,1740894560238,-2827.7843169,0.00021297,2]
[355103056,1740894560261,-169.870073,0.00021342,2]
[355103057,1740894560282,-215.56907795,0.00021582,2]
[355103058,1740894565154,-516.88143015,0.00021582,2]
[355103059,1740894565176,-1679.1405259,0.00021828,2]
[355103060,1740894565198,-624.51642808,0.000219,2]
[355103066,1740894588766,119.46161587,0.00021981,2]
[355103084,1740894632757,-362.30478313,0.00021981,2]
[355103085,1740894632768,-300.0,0.00022538,2]
[355103086,1740894632778,-173.58,0.00022539,2]
[355103087,1740894632789,-500.0,0.00022539,2]
[355103088,1740894632799,-500.0,0.00022539,2]
[355103089,1740894632809,-500.0,0.00022539,2]
[355103090,1740894632819,-500.0,0.00022539,2]
[355103091,1740894632829,-500.0,0.00022539,2]
[355103092,1740894632839,-500.0,0.00022539,2]
[355103093,1740894632849,-500.0,0.00022539,2]
[355103094,1740894632862,-500.0,0.00022539,2]
[355103095,1740894632872,-500.0,0.00022539,2]
[355103096,1740894632882,-500.0,0.00022539,2]
[355103097,1740894632892,-500.0,0.00022539,2]
[355103098,1740894632903,-165.37,0.00022539,2]
[355103099,1740894632913,-500.0,0.00022539,2]
[355103100,1740894632923,-500.0,0.00022539,2]
[355103101,1740894632935,-500.0,0.00022539,2]
[355103102,1740894632946,-500.0,0.00022539,2]
[355103103,1740894632956,-500.0,0.00022539,2]
[355103104,1740894632966,-500.0,0.00022539,2]
[355103105,1740894632976,-496.07,0.00022539,2]
[355103106,1740894632985,-500.0,0.00022539,2]
[355103107,1740894632995,-621.45,0.00022539,2]
[355103108,1740894633005,-500.0,0.00022539,2]
[355103109,1740894633016,-500.0,0.00022539,2]
[355103110,1740894633027,-332.85,0.00022539,2]
[355103111,1740894633038,-500.0,0.00022813,2]
[355103112,1740894633049,-500.0,0.00022813,2]
[355103113,1740894633063,-639.28,0.00022813,2]
[355103114,1740894633073,-500.0,0.00022813,2]
[355103115,1740894633088,-500.0,0.00022813,2]
[355103116,1740894633098,-500.0,0.00022813,2]
[355103117,1740894633109,-500.0,0.00022813,2]
[355103118,1740894633119,-65.78683964,0.00022813,2]
[355103138,1740894638177,-105.84343356,0.00022813,2]
[355103144,1740894638224,-328.3697268,0.00022813,2]
[355103146,1740894638234,-500.0,0.00022813,2]
[355103148,1740894638244,-500.0,0.00022813,2]
[355103150,1740894638254,-500.0,0.00022813,2]
[355103152,1740894638264,-500.0,0.00022813,2]
[355103154,1740894638274,-500.0,0.00022813,2]
[355103156,1740894638283,-500.0,0.00022813,2]
[355103159,1740894638293,-500.0,0.00022813,2]
[355103162,1740894638303,-500.0,0.00022813,2]
[355103165,1740894638313,-500.0,0.00022813,2]
[355103168,1740894638322,-500.0,0.00022813,2]
[355103171,1740894638332,-500.0,0.00022813,2]
[355103174,1740894638342,-964.16931298,0.00023,2]
[355103176,1740894638352,-552.82616695,0.00023073,2]
[355103178,1740894638362,-500.0,0.00023084,2]
[355103181,1740894638372,-376.22741751,0.00023084,2]
[355103184,1740894638382,-500.0,0.00023084,2]
[355103186,1740894638392,-500.0,0.00023084,2]
[355103188,1740894638402,-500.0,0.00023084,2]
[355103190,1740894638412,-500.0,0.00023084,2]
[355103192,1740894638422,-500.0,0.00023084,2]
[355103194,1740894638432,-500.0,0.00023084,2]
[355103196,1740894638442,-500.0,0.00023084,2]
[355103198,1740894638452,-500.0,0.00023084,2]
[355103200,1740894638462,-583.22692393,0.00023084,2]
[355103202,1740894638472,-347.2803944,0.00023085,2]
[355103204,1740894638482,-500.0,0.00023085,2]
[355103206,1740894638492,-500.0,0.00023085,2]
[355103208,1740894638502,-500.0,0.00023085,2]
[355103210,1740894638512,-531.87,0.00023085,2]
[355103211,1740894638521,-500.0,0.00023085,2]
[355103213,1740894638532,-1260.93,0.00023085,2]
[355103215,1740894638542,-500.0,0.00023085,2]
[355103217,1740894638552,-540.74,0.00023085,2]
[355103219,1740894638562,-500.0,0.00023085,2]
[355103221,1740894638572,-2797.01,0.00023085,2]
[355103223,1740894638584,-500.0,0.00023085,2]
[355103225,1740894638593,-1487.55,0.00023085,2]
[355103227,1740894638603,-500.0,0.00023085,2]
[355103229,1740894638613,-500.0,0.00023085,2]
[355103231,1740894638623,-500.0,0.00023085,2]
[355103233,1740894638632,-558.8,0.00023085,2]
[355103235,1740894638643,-500.0,0.00023085,2]
[355103237,1740894638653,-500.0,0.00023085,2]
[355103239,1740894638662,-500.0,0.00023085,2]
[355103241,1740894638671,-500.0,0.00023085,2]
[355103243,1740894638681,-500.0,0.00023085,2]
[355103245,1740894638690,-1729.44,0.00023085,2]
[355103247,1740894638700,-500.0,0.00023085,2]
[355103249,1740894638711,-500.0,0.00023085,2]
[355103251,1740894638720,-1716.37,0.00023085,2]
[355103253,1740894638729,-893.33,0.00023085,2]
[355103255,1740894638740,-500.0,0.00023085,2]
[355103257,1740894638751,-500.0,0.00023085,2]
[355103259,1740894638761,-500.0,0.00023085,2]
[355103261,1740894638771,-780.24,0.00023085,2]
[355103263,1740894638781,-2108.12,0.00023085,2]
[355103265,1740894638791,-500.0,0.00023085,2]
[355103267,1740894638800,-159.90189267,0.00023085,2]
[355103268,1740894638810,-500.0,0.00023085,2]
[355103269,1740894638819,-500.0,0.00023085,2]
[355103270,1740894638829,-500.0,0.00023085,2]
[355103271,1740894638838,-500.0,0.00023085,2]
[355103272,1740894638848,-500.0,0.00023085,2]
[355103273,1740894638860,-500.0,0.00023085,2]
[355103274,1740894638870,-609.88,0.00023085,2]
[355103275,1740894638880,-500.0,0.00023085,2]
[355103276,1740894638889,-500.0,0.00023085,2]
[355103277,1740894638900,-386.79695689,0.00023085,2]
[355103278,1740894638910,-1022.76,0.00023085,2]
[355103279,1740894638920,-528.97,0.00023085,2]
[355103280,1740894638932,-994.48,0.00023085,2]
[355103281,1740894638942,-2091.18,0.00023085,2]
[355103282,1740894638952,-500.0,0.00023085,2]
[355103283,1740894638962,-25740.58,0.00023085,2]
[355103284,1740894638972,-500.0,0.00023085,2]
[355103285,1740894638983,-2516.16,0.00023085,2]
[355103286,1740894638992,-500.0,0.00023085,2]
[355103287,1740894639002,-500.0,0.00023085,2]
[355103288,1740894639012,-500.0,0.00023085,2]
[355103289,1740894639022,-1349.49,0.00023085,2]
[355103290,1740894639031,-500.0,0.00023085,2]
[355103291,1740894639041,-263.33209096,0.00023085,2]
[355103292,1740894639052,-490.77039543,0.00023085,2]
[355103293,1740894639062,-839.47,0.00023085,2]
[355103294,1740894639072,-1236.27,0.00023085,2]
[355103295,1740894639083,-250.0,0.00023085,2]
[355103296,1740894639092,-500.0,0.00023086,2]
[355103297,1740894639102,-526.71,0.00023086,2]
[355103298,1740894639112,-500.0,0.00023086,2]
[355103299,1740894639122,-341.7,0.00023086,2]
[355103300,1740894639132,-500.0,0.00023086,2]
[355103301,1740894639142,-500.0,0.00023086,2]
[355103302,1740894639152,-500.0,0.00023086,2]
[355103303,1740894639162,-500.0,0.00023086,2]
[355103304,1740894639172,-500.0,0.00023086,2]
[355103305,1740894639182,-500.0,0.00023086,2]
[355103306,1740894639192,-500.0,0.00023086,2]
[355103307,1740894639201,-500.0,0.00023086,2]
[355103308,1740894639212,-500.0,0.00023086,2]
[355103309,1740894639222,-500.0,0.00023086,2]
[355103310,1740894639232,-500.0,0.00023086,2]
[355103311,1740894639243,-500.0,0.00023086,2]
[355103312,1740894639253,-500.0,0.00023086,2]
[355103313,1740894639263,-500.0,0.00023086,2]
[355103314,1740894639273,-500.0,0.00023086,2]
[355103315,1740894639283,-500.0,0.00023086,2]
[355103316,1740894639293,-500.0,0.00023086,2]
[355103317,1740894639303,-500.0,0.00023086,2]
[355103318,1740894639312,-500.0,0.00023086,2]
[355103319,1740894639322,-500.0,0.00023086,2]
[355103320,1740894639332,-500.0,0.00023086,2]
[355103321,1740894639342,-500.0,0.00023086,2]
[355103322,1740894639352,-500.0,0.00023086,2]
[355103323,1740894639364,-500.0,0.00023086,2]
[355103324,1740894639374,-500.0,0.00023086,2]
[355103325,1740894639384,-500.0,0.00023086,2]
[355103326,1740894639394,-500.0,0.00023086,2]
[355103327,1740894639404,-500.0,0.00023086,2]
[355103328,1740894639419,-500.0,0.00023086,2]
[355103329,1740894639429,-500.0,0.00023086,2]
[355103330,1740894639438,-500.0,0.00023086,2]
[355103331,1740894639447,-500.0,0.00023086,2]
[355103332,1740894639457,-500.0,0.00023086,2]
[355103333,1740894639472,-500.0,0.00023086,2]
[355103334,1740894639481,-500.0,0.00023086,2]
[355103335,1740894639492,-255.57393402,0.00023086,2]
[355103336,1740894639502,-500.0,0.00023086,2]
[355103337,1740894639570,-447.88,0.00023086,2]
[355103338,1740894639580,-500.0,0.00023086,2]
[355103339,1740894639590,-500.0,0.00023086,2]
[355103340,1740894639600,-500.0,0.00023086,2]
[355103341,1740894639610,-500.0,0.00023086,2]
[355103342,1740894639620,-500.0,0.00023086,2]
[355103343,1740894639630,-807.94,0.00023086,2]
[355103344,1740894639639,-568.12,0.00023086,2]
[355103345,1740894639648,-500.0,0.00023086,2]
[355103346,1740894639658,-500.0,0.00023087,2]
[355103347,1740894639667,-601.1,0.00023087,2]
[355103348,1740894639676,-500.0,0.00023087,2]
[355103349,1740894639686,-500.0,0.00023087,2]
[355103350,1740894639695,-500.0,0.00023087,2]
[355103351,1740894639704,-500.0,0.00023087,2]
[355103352,1740894639713,-500.0,0.00023087,2]
[355103353,1740894639722,-500.0,0.00023087,2]
[355103354,1740894639731,-500.0,0.00023087,2]
[355103355,1740894639743,-500.0,0.00023087,2]
[355103356,1740894639752,-500.0,0.00023359,2]
[355103357,1740894639761,-510.06,0.00023359,2]
[355103358,1740894639771,-531.87,0.00023359,2]
[355103359,1740894639780,-500.0,0.00023359,2]
[355103360,1740894639789,-1260.93,0.00023359,2]
[355103361,1740894639799,-587.8,0.00023359,2]
[355103362,1740894639808,-500.0,0.00023359,2]
[355103363,1740894639817,-2797.01,0.00023359,2]
[355103364,1740894639826,-1487.55,0.00023359,2]
[355103365,1740894639836,-500.0,0.00023359,2]
[355103366,1740894639845,-500.0,0.00023359,2]
[355103367,1740894639859,-500.0,0.00023359,2]
[355103368,1740894639868,-558.8,0.00023359,2]
[355103369,1740894639877,-500.0,0.00023359,2]
[355103370,1740894639886,-500.0,0.00023359,2]
[355103371,1740894639896,-500.0,0.00023359,2]
[355103372,1740894639906,-500.0,0.00023359,2]
[355103373,1740894639915,-342.1,0.00023359,2]
[355103374,1740894639925,-1729.44,0.00023359,2]
[355103376,1740894639936,-250.78,0.00023359,2]
[355103377,1740894639946,-500.0,0.00023359,2]
[355103378,1740894639956,-1716.37,0.00023359,2]
[355103379,1740894639965,-893.33,0.00023359,2]
[355103380,1740894639975,-500.0,0.00023359,2]
[355103381,1740894639985,-500.0,0.00023359,2]
[355103382,1740894639994,-780.24,0.00023359,2]
[355103383,1740894640004,-2108.12,0.00023359,2]
[355103384,1740894640014,-500.0,0.00023359,2]
[355103385,1740894640024,-500.0,0.00023359,2]
[355103386,1740894640034,-500.0,0.00023359,2]